bitfinex/quotes_ETHUSD_20251107
["timestamp","ask_amount","ask_price","bid_price","bid_amount"]
[1762508813477,0.4134,3299.4,3299.1,3.03109899]
[1762508813675,0.002,3299.6,3298.7,0.6642]
[1762508813881,0.1512,3299.1,3299.0,3.03122158]
[1762508814080,0.1512,3299.1,3299.0,3.63748427]
[1762508814286,0.1512,3299.1,3299.0,4.12798427]
[1762508814473,0.1512,3299.1,3299.0,4.59768427]
[1762508815302,0.5646,3299.1,3298.7,3.03149577]
[1762508815489,0.3371,3298.8,3298.6,0.001]
[1762508815675,0.4093,3298.7,3298.6,0.001]
[1762508815992,0.9028,3298.7,3298.6,0.001]
[1762508819186,3.93429725,3298.7,3298.6,0.001]
[1762508819503,0.9028,3298.7,3298.6,0.001]
[1762508820068,0.4935,3299.2,3298.6,0.001]
[1762508820345,1.934212,3299.5,3298.6,0.001]
[1762508820473,3.03096392,3299.3,3298.6,3.03255565]
[1762508820817,1.259712,3299.4,3298.6,3.03255565]
[1762508820818,0.4134,3298.7,3298.6,0.001]
[1762508821168,0.4142,3298.7,3298.6,0.001]
[1762508821371,1.259712,3299.4,3298.6,3.52300352]
[1762508821675,0.4935,3299.4,3298.7,3.03144137]
[1762508821889,1.753212,3299.4,3298.7,3.03144137]
[1762508822295,1.753212,3299.4,3298.8,3.03137472]
[1762508822592,0.1512,3298.7,3298.6,3.03258915]
[1762508822908,0.1512,3298.7,3298.6,0.001]
[1762508823089,0.1512,3298.7,3298.6,3.52308915]
[1762508824304,1.440712,3299.5,3298.6,1.66668703]
[1762508824605,0.181,3299.5,3298.9,3.03126049]
[1762508824792,0.1512,3298.9,3298.6,3.52306449]
[1762508824993,0.1512,3298.7,3298.6,3.03256449]
[1762508825205,0.1512,3298.7,3298.6,0.001]
[1762508825370,0.1512,3298.7,3298.6,3.52308915]
[1762508825809,0.1512,3298.7,3298.6,4.67858926]
[1762508825970,0.002,3299.6,3298.7,3.03149725]
[1762508826306,0.002,3299.6,3299.5,3.03076223]
[1762508826806,0.002,3299.6,3299.5,3.52126223]
[1762508827208,0.002,3299.6,3299.5,0.4905]
[1762508827571,0.002,3299.6,3298.6,0.80768422]
[1762508827572,0.9081,3299.6,3298.6,0.80768422]
[1762508827930,0.4154,3299.6,3299.1,3.03107406]
[1762508828082,0.1512,3299.1,3299.0,3.03122158]
[1762508828491,0.1512,3299.1,3299.0,3.99142158]
[1762508829387,0.002,3299.6,3299.5,3.03076223]
[1762508829586,0.002,3299.6,3299.5,3.52126223]
[1762508830103,0.002,3299.6,3299.5,3.03076223]
[1762508830309,0.002,3299.6,3299.5,3.52126223]
[1762508830506,0.002,3299.6,3299.2,0.4697]
[1762508830689,0.1512,3299.2,3299.1,3.03104944]
[1762508830890,0.1504,3299.2,3299.1,3.03104944]
[1762508831222,0.1504,3299.2,3298.7,0.6209]
[1762508831522,0.4142,3299.2,3298.7,3.03148508]
[1762508831822,0.1512,3299.0,3298.9,3.03131346]
[1762508832117,0.1512,3299.0,3298.6,0.001]
[1762508832317,0.1512,3299.0,3298.9,3.03131346]
[1762508832886,0.1512,3299.0,3298.6,0.001]
[1762508833195,0.1512,3298.7,3298.6,3.03256292]
[1762508833598,0.1512,3298.7,3298.6,0.001]
[1762508834713,0.5662,3298.7,3298.6,0.001]
[1762508835088,5.16120925,3298.7,3298.6,0.001]
[1762508835323,2.129712,3298.7,3298.6,0.001]
[1762508835691,5.16120925,3298.7,3298.6,0.001]
[1762508835910,2.129712,3298.7,3298.6,0.001]
[1762508836716,0.1877,3299.2,3298.6,0.4542]
[1762508836915,0.1877,3299.2,3298.7,3.03149725]
[1762508837293,0.1877,3299.2,3298.8,3.03139565]
[1762508837493,0.1877,3299.2,3298.6,3.06287901]
[1762508837494,0.455,3299.1,3298.6,0.001]
[1762508837826,1.714712,3299.1,3298.6,0.001]
[1762508838027,0.455,3299.1,3298.6,0.001]
[1762508838327,1.714712,3299.0,3298.6,0.001]
[1762508838629,0.445,3298.7,3298.6,0.001]
[1762508839086,1.902312,3299.2,3298.6,3.03258915]
[1762508839294,0.1877,3299.2,3298.7,3.03148572]
[1762508839494,1.447412,3299.5,3298.8,3.03136021]
[1762508839701,1.447412,3299.5,3298.9,3.03131051]
[1762508839908,0.1877,3299.5,3298.7,0.4575]
[1762508840103,0.1877,3299.5,3298.9,3.03123905]
[1762508840301,0.1877,3299.5,3299.0,3.0311994]
[1762508840528,0.457,3299.6,3299.0,3.0311994]
[1762508840724,1.716712,3299.6,3299.0,3.0311994]
[1762508841035,0.457,3299.6,3299.0,3.03118618]
[1762508841234,0.002,3299.6,3299.1,0.1853]
[1762508841544,0.002,3299.6,3299.2,3.03103782]
[1762508841700,0.002,3299.6,3299.2,3.48853782]
[1762508841897,0.002,3299.6,3299.1,3.0310996]
[1762508842202,0.457,3299.6,3299.1,3.03106171]
[1762508842608,0.457,3299.6,3299.0,3.03119519]
[1762508843015,0.002,3299.6,3298.9,0.1853]
[1762508843197,0.002,3299.6,3299.1,3.03106174]
[1762508843396,0.002,3299.6,3299.2,3.03102422]
[1762508843733,0.002,3299.6,3299.0,3.03115418]
[1762508843941,0.4806,3299.1,3298.7,3.03149725]
[1762508844155,1.259712,3299.4,3299.1,0.001]
[1762508844302,1.714712,3299.4,3299.1,0.001]
[1762508844514,0.445,3299.2,3299.1,0.001]
[1762508845098,0.8999,3299.2,3299.1,0.001]
[1762508845636,0.445,3299.2,3299.1,0.001]
[1762508845932,0.8999,3299.2,3299.1,0.001]
[1762508847420,0.445,3299.2,3299.1,0.001]
[1762508847822,0.8999,3299.2,3299.1,0.001]
[1762508850560,0.002,3299.6,3299.1,1.097]
[1762508850761,0.002,3299.6,3299.5,3.48396223]
[1762508851129,0.002,3299.6,3299.5,3.94146223]
[1762508852162,0.002,3299.6,3299.5,3.48396223]
[1762508852348,0.002,3299.6,3299.5,3.94146223]
[1762508852668,0.4826,3299.6,3299.1,0.1863]
[1762508852872,0.9022,3299.6,3299.2,3.03098206]
[1762508853166,0.1512,3299.2,3299.1,3.03209194]
[1762508853538,0.1512,3299.2,3299.1,3.48529194]
[1762508853732,0.002,3299.6,3299.5,3.03076223]
[1762508853938,0.002,3299.6,3299.5,3.48396223]
[1762508854249,0.002,3299.6,3299.5,3.94146223]
[1762508857651,0.002,3299.6,3299.5,3.48396223]
[1762508858253,0.002,3299.6,3299.5,3.94146223]
[1762508858562,0.002,3299.6,3299.5,4.9417801]
[1762508859495,0.002,3299.6,3299.5,4.0310801]
[1762508859699,0.9063,3299.6,3299.1,0.001]
[1762508859993,0.002,3299.6,3299.5,0.4905]
[1762508860196,0.1532,3299.6,3299.5,3.52126223]
[1762508862167,0.1532,3299.6,3299.5,4.63417417]
[1762508862580,0.1532,3299.6,3299.5,4.17647417]
[1762508863178,0.1532,3299.6,3299.5,3.52126223]
[1762508865157,0.1532,3299.6,3299.5,4.00766223]
[1762508865558,0.002,3299.6,3299.5,4.00766223]
[1762508865999,0.002,3299.6,3299.5,3.52126223]
[1762508866502,0.002,3299.6,3299.5,4.00766223]
[1762508866684,0.002,3299.6,3299.5,5.01459956]
[1762508870128,0.002,3299.6,3299.5,4.52819956]
[1762508870529,0.002,3299.6,3299.5,5.01459956]
[1762508871578,0.002,3299.6,3299.1,0.4874]
[1762508872297,0.002,3299.6,3299.5,3.03076223]
[1762508875131,0.002,3299.6,3299.5,0.4504]
[1762508875291,0.4172,3299.6,3299.1,0.001]
[1762508875631,0.4172,3299.6,3299.5,3.03076223]
[1762508875989,0.002,3299.6,3299.5,3.48116223]
[1762508876426,0.1532,3299.6,3299.5,3.48116223]
[1762508876603,0.1524,3299.6,3299.5,4.9218493]
[1762508876984,0.0012,3299.6,3299.5,4.9218493]
[1762508880106,0.7206,3299.6,3299.1,0.001]
[1762508880308,0.2302,3299.2,3299.1,0.001]
[1762508880717,0.719,3299.2,3299.1,0.001]
[1762508881034,0.2302,3299.2,3299.1,3.0321297]
[1762508881665,0.0012,3299.6,3299.1,0.4514]
[1762508881823,0.0012,3299.6,3299.5,3.03076223]
[1762508882157,0.0012,3299.6,3299.5,3.48116223]
[1762508882459,0.0012,3299.6,3299.5,5.8784777]
[1762508882864,0.0012,3299.6,3299.5,4.9416777]
[1762508883168,0.0012,3299.6,3299.5,5.8784777]
[1762508887060,0.0012,3299.6,3299.5,6.0296777]
[1762508888490,0.0012,3299.6,3299.5,5.3920777]
[1762508888642,0.0012,3299.6,3299.5,3.03076223]
[1762508888982,0.4164,3299.6,3299.5,3.03076223]
[1762508889151,0.0012,3299.6,3299.5,3.96756223]
[1762508890180,0.0012,3299.6,3299.5,5.22727423]
[1762508892140,0.0012,3299.6,3299.5,4.29047423]
[1762508892375,0.9045,3299.6,3299.5,3.03076223]
[1762508892560,0.9045,3299.6,3299.1,0.001]
[1762508892771,0.4888,3299.5,3299.1,0.001]
[1762508892968,0.4152,3299.2,3299.1,3.0321297]
[1762508893345,0.9033,3299.2,3299.1,0.001]
[1762508893547,0.9033,3299.2,3299.1,3.0321297]
[1762508894040,0.9033,3299.2,3299.1,0.001]
[1762508894239,0.9033,3299.2,3299.1,3.0321297]
[1762508894468,0.9033,3299.2,3299.1,0.001]
[1762508896042,3.03189425,3299.6,3299.2,3.03103782]
[1762508896043,0.0012,3299.6,3299.2,3.03103782]
[1762508896249,0.0012,3299.6,3299.5,3.03176223]
[1762508896250,0.4523,3299.6,3299.5,3.03176223]
[1762508896478,0.4523,3299.6,3299.5,0.001]
[1762508896653,0.9049,3299.6,3299.5,0.001]
[1762508896866,0.9049,3299.6,3299.5,3.03176223]
[1762508897068,0.9049,3299.6,3299.5,0.001]
[1762508897465,0.9049,3299.6,3299.5,3.03176223]
[1762508897684,0.9049,3299.6,3299.5,0.001]
[1762508897886,0.9049,3299.6,3299.5,3.03176223]
[1762508898545,0.4538,3299.6,3299.5,3.03176223]
[1762508899177,0.0012,3299.6,3299.5,3.03176223]
[1762508899487,0.0004,3299.6,3299.5,4.85910995]
[1762508900076,0.0004,3299.6,3299.5,4.40490995]
[1762508900277,0.0004,3299.6,3299.5,4.85910995]
[1762508901178,0.0004,3299.6,3299.5,4.40490995]
[1762508901748,0.0004,3299.6,3299.5,4.85910995]
[1762508904178,0.0004,3299.6,3299.5,6.11882195]
[1762508908269,0.002,3300.0,3299.9,3.03039486]
[1762508908470,0.002,3300.0,3299.9,5.05694635]
[1762508908707,0.002,3300.0,3299.9,5.51114635]
[1762508909371,0.002,3300.0,3299.9,5.05694635]
[1762508909568,0.4568,3300.0,3299.9,3.03039486]
[1762508910005,0.002,3300.0,3299.9,3.49419486]
[1762508910171,0.002,3300.0,3299.9,3.03039486]
[1762508910489,0.002,3300.0,3299.9,3.49419486]
[1762508910901,0.002,3300.0,3299.9,5.20810686]
[1762508911095,0.002,3300.0,3299.9,6.03196652]
[1762508913482,0.002,3300.7,3300.4,4.28964776]
[1762508913798,0.002,3300.7,3300.4,4.75344776]
[1762508913998,0.002,3300.7,3300.4,5.35884776]
[1762508914168,0.002,3300.7,3300.4,6.51950865]
[1762508914710,0.005,3300.9,3300.8,3.02956858]
[1762508914913,0.005,3300.9,3300.8,3.94756858]
[1762508915513,0.005,3300.9,3300.8,4.09876858]
[1762508915708,1e-08,3300.9,3300.8,5.35848058]
[1762508915913,1e-08,3300.9,3300.8,6.197295]
[1762508917113,1e-08,3300.9,3300.8,5.279295]
[1762508917775,1e-08,3300.9,3300.8,3.02956858]
[1762508918190,0.46000001,3300.9,3300.8,3.02956858]
[1762508918702,1.09460001,3300.9,3300.8,3.02956858]
[1762508920794,0.64350001,3300.9,3300.8,3.02956858]
[1762508921030,0.46000001,3300.9,3300.8,3.02956858]
[1762508921227,1.09470001,3300.9,3300.8,3.02956858]
[1762508922028,0.46000001,3300.9,3300.8,3.02956858]
[1762508922210,0.45920001,3300.9,3300.8,3.02956858]
[1762508922596,0.002,3301.0,3300.9,3.0294768]
[1762508922796,0.002,3301.0,3300.9,3.9595768]
[1762508923623,0.002,3301.0,3300.9,3.4899768]
[1762508924610,0.002,3301.0,3300.9,3.0294768]
[1762508924814,0.9105,3301.0,3300.9,3.0294768]
[1762508925532,0.002,3301.0,3300.9,6.22551334]
[1762508930511,0.002,3301.0,3300.9,5.29721334]
[1762508931442,0.4204,3301.0,3300.9,5.29721334]
[1762508931810,0.002,3301.0,3300.9,5.76751334]
[1762508932024,0.002,3301.0,3300.9,5.29721334]
[1762508932239,0.4204,3301.0,3300.9,5.29721334]
[1762508933254,0.002,3301.0,3300.9,5.29721334]
[1762508933461,0.002,3301.0,3300.9,5.76751334]
[1762508934279,0.002,3301.0,3300.9,6.22551334]
[1762508935659,0.002,3301.0,3300.9,6.37671334]
[1762508939434,0.002,3301.0,3300.9,5.91871334]
[1762508939634,0.002,3301.0,3300.9,6.37671334]
[1762508940069,0.002,3301.0,3300.9,10.24671334]
[1762508941154,1e-08,3301.4,3301.3,3.49940974]
[1762508941349,1e-08,3301.4,3301.3,5.51878293]
[1762508941544,0.41840001,3301.4,3301.3,4.94168293]
[1762508941964,1e-08,3301.4,3301.3,5.41198293]
[1762508942159,1e-08,3301.4,3301.3,4.94168293]
[1762508942396,0.90950001,3301.4,3301.3,3.02910974]
[1762508942552,0.90950001,3301.4,3300.4,0.001]
[1762508942748,0.4919,3301.3,3300.4,0.001]
[1762508942947,0.4919,3301.3,3300.4,3.03093576]
[1762508943186,0.4919,3301.3,3301.2,3.0292015]
[1762508943701,1e-08,3301.4,3301.3,3.02910974]
[1762508944053,0.46180001,3301.4,3301.3,3.02910974]
[1762508944363,0.95340001,3301.4,3301.3,3.02910974]
[1762508945066,0.95260001,3301.4,3301.3,3.02910974]
[1762508946107,0.95260001,3301.4,3300.4,0.001]
[1762508946305,0.4919,3301.3,3300.5,0.4329]
[1762508946608,0.4919,3301.3,3301.0,3.02938503]
[1762508946905,0.4919,3301.3,3301.2,3.0292015]
[1762508947389,0.9521,3301.3,3301.2,3.0292015]
[1762508948574,0.4602,3301.3,3301.2,3.0292015]
[1762508948772,0.9517,3301.3,3301.2,3.0292015]
[1762508948968,0.9517,3301.3,3301.1,3.02926367]
[1762508949175,0.0049,3301.1,3301.0,3.02938503]
[1762508949358,0.0049,3301.1,3300.4,0.001]
[1762508949989,0.465,3300.5,3300.4,3.03089922]
[1762508950193,0.4868,3301.0,3300.9,3.0294768]
[1762508950357,0.2847,3300.5,3300.4,0.001]
[1762508950686,0.2847,3300.5,3300.0,0.001]
[1762508950687,1.259712,3300.3,3300.0,0.001]
[1762508950998,0.1417,3300.1,3300.0,0.001]
[1762508951377,0.6336,3300.1,3300.0,0.001]
[1762508951702,0.6336,3300.1,3300.0,3.03130303]
[1762508952300,0.1417,3300.1,3300.0,3.03130303]
[1762508952482,0.1824,3300.7,3300.6,3.02975216]
[1762508952980,0.1512,3300.6,3300.0,0.001]
[1762508953181,0.0042,3300.5,3300.0,0.001]
[1762508953395,0.1512,3300.3,3300.1,3.03020155]
[1762508953569,0.1512,3300.3,3300.2,3.03011938]
[1762508953992,0.6162,3300.3,3300.2,3.03011938]
[1762508954569,1.0612,3300.3,3300.2,3.03011938]
[1762508954904,1.0612,3300.3,3300.1,3.03017531]
[1762508955080,1.0612,3300.3,3300.2,3.03011938]
[1762508955275,1.0612,3300.3,3300.0,0.001]
[1762508955276,0.5962,3300.3,3300.0,0.001]
[1762508955476,0.0046,3300.2,3300.1,3.03014821]
[1762508955892,0.0046,3300.2,3300.0,0.001]
[1762508956082,0.406,3300.1,3300.0,3.03127252]
[1762508956289,0.1512,3300.3,3300.2,3.03011938]
[1762508957818,0.5618,3300.3,3300.0,0.001]
[1762508958120,0.6501,3300.3,3300.2,3.03011938]
[1762508958618,0.6501,3300.3,3300.2,3.52631938]
[1762508958619,0.1512,3300.3,3300.2,3.52631938]
[1762508958927,0.1512,3300.9,3300.7,3.02959774]
[1762508959124,0.1512,3300.9,3300.2,1.77827091]
[1762508959125,0.408,3300.8,3300.5,3.0298407]
[1762508959433,0.3362,3300.9,3300.7,3.02966037]
[1762508959733,0.3362,3300.9,3300.8,3.02956858]
[1762508959937,0.408,3300.8,3300.2,0.1512]
[1762508960086,0.408,3300.8,3300.7,3.02966037]
[1762508962621,0.9069,3300.8,3300.3,3.02996614]
[1762508962923,0.404,3300.4,3300.0,0.1522]
[1762508963232,0.404,3300.4,3300.3,3.03002757]
[1762508963825,0.9038,3300.4,3300.3,3.03002757]
[1762508965446,0.404,3300.4,3300.3,3.03002757]
[1762508967546,0.9038,3300.4,3300.2,3.03008609]
[1762508967721,0.0073,3300.2,3300.1,3.03018809]
[1762508968449,0.651,3300.4,3300.3,3.03002757]
[1762508968825,1.0575,3300.4,3300.3,3.03002757]
[1762508969025,0.5577,3300.4,3300.0,0.001]
[1762508969240,0.4073,3300.1,3300.0,0.001]
[1762508969618,0.9053,3300.1,3300.0,0.001]
[1762508971284,0.9053,3300.1,3300.0,3.03130303]
[1762508971471,0.9053,3300.1,3300.0,0.001]
[1762508972974,0.9053,3300.1,3300.0,3.03130303]
[1762508973173,0.9053,3300.1,3300.0,0.001]
[1762508976457,0.4073,3300.1,3300.0,0.001]
[1762508976741,0.9069,3300.1,3300.0,0.001]
[1762508978284,0.9069,3300.1,3300.0,3.03130303]
[1762508978500,0.4073,3300.1,3300.0,3.03130303]
[1762508979763,0.4073,3300.1,3300.0,0.001]
[1762508979989,0.4512,3300.7,3300.3,3.0300038]
[1762508980496,0.1512,3300.3,3300.2,3.06042057]
[1762508980696,0.1512,3300.3,3300.0,3.50640276]
[1762508980864,0.0046,3300.1,3300.0,0.001]
[1762508981066,0.0046,3300.1,3300.0,3.03130303]
[1762508981373,0.1512,3300.3,3300.2,3.03011938]
[1762508981578,0.1512,3300.3,3300.2,3.50521938]
[1762508981765,0.187,3300.9,3300.7,3.02962623]
[1762508982273,0.4561,3300.8,3300.7,3.02962623]
[1762508982473,0.4561,3300.8,3300.1,0.1825]
[1762508982698,0.6382,3300.9,3300.1,0.1825]
[1762508982699,0.0046,3300.6,3300.3,3.03000708]
[1762508982885,0.6382,3300.9,3300.6,3.02968374]
[1762508983076,0.6382,3300.9,3300.2,0.42951682]
[1762508983396,0.6382,3300.9,3300.2,0.90461682]
[1762508983397,0.187,3300.9,3300.2,0.90461682]
[1762508983776,0.187,3300.9,3300.5,3.02984391]
[1762508984109,0.6382,3300.9,3300.2,0.42951682]
[1762508984396,0.002,3300.9,3300.4,3.02990851]
[1762508984616,0.002,3300.9,3300.1,0.1825]
[1762508984784,0.666,3300.9,3300.1,0.6613]
[1762508985484,0.666,3300.9,3300.6,3.02969216]
[1762508985683,0.4806,3300.8,3300.6,3.02969216]
[1762508985890,0.4287,3300.7,3300.6,3.02969216]
[1762508986293,0.4287,3300.7,3300.4,3.02993298]
[1762508986496,0.4806,3300.7,3300.6,3.02975216]
[1762508986695,0.1854,3300.9,3300.4,0.001]
[1762508986895,0.666,3300.9,3300.5,3.02977396]
[1762508987286,0.4287,3300.6,3300.5,3.02977396]
[1762508987806,0.4287,3300.6,3300.4,0.001]
[1762508988017,0.666,3300.9,3300.4,0.001]
[1762508988324,0.666,3300.9,3300.8,3.02956858]
[1762508988685,0.002,3300.9,3300.8,3.98886858]
[1762508988880,0.002,3300.9,3300.8,4.99368814]
[1762508989429,0.002,3300.9,3300.8,4.51488814]
[1762508990587,0.0012,3300.9,3300.8,4.51488814]
[1762508990789,0.0012,3300.9,3300.8,4.99368814]
[1762508991704,0.0012,3300.9,3300.8,5.14488814]
[1762508993096,0.0012,3300.9,3300.8,4.66608814]
[1762508993430,0.0012,3300.9,3300.8,5.14488814]
[1762508994325,0.0012,3300.9,3300.8,4.51488814]
[1762508994524,0.0012,3300.9,3300.8,3.51006858]
[1762508997165,0.0012,3300.9,3300.8,3.02956858]
[1762508997347,0.4299,3300.9,3300.8,3.02956858]
[1762508997939,0.4299,3300.9,3300.8,3.51006858]
[1762508997940,0.0012,3300.9,3300.8,3.51006858]
[1762509000445,0.0012,3300.9,3300.8,3.02956858]
[1762509000647,0.9119,3300.9,3300.8,3.02956858]
[1762509000840,1.0631,3300.9,3300.8,3.02956858]
[1762509001057,0.1524,3300.9,3300.8,3.51006858]
[1762509001257,0.0012,3300.9,3300.8,4.9458078]
[1762509001558,0.0012,3300.9,3300.8,9.24764552]
[1762509001856,0.0012,3300.9,3300.8,9.39884552]
[1762509002554,0.0012,3300.9,3300.8,9.50772462]
[1762509003260,0.0012,3300.9,3300.8,10.76743662]
[1762509003559,0.0012,3300.9,3300.8,10.76843662]
[1762509007263,0.002,3301.6,3301.5,3.02892624]
[1762509007568,0.005,3301.9,3301.8,3.02865103]
[1762509007726,1e-08,3301.9,3301.8,8.39866785]
[1762509007927,0.005,3303.9,3302.8,3.02773404]
[1762509008137,0.005,3303.9,3302.8,8.10075086]
[1762509008138,0.4806,3303.6,3302.8,8.10075086]
[1762509008341,0.4806,3303.6,3302.8,3.69003404]
[1762509008556,0.4806,3303.6,3302.8,4.68263529]
[1762509008890,0.9191,3302.9,3302.1,3.02837588]
[1762509009094,0.1845,3302.7,3302.6,3.02785567]
[1762509009393,0.487,3302.9,3301.9,1.920312]
[1762509009394,0.1884,3302.9,3301.9,1.920312]
[1762509009538,0.669,3302.9,3302.8,3.02773404]
[1762509009963,0.4371,3302.9,3302.8,3.02773404]
[1762509010274,1.1012,3302.9,3302.8,3.02773404]
[1762509010572,1.1012,3302.9,3302.7,3.02776593]
[1762509010739,0.4806,3302.8,3302.1,1.259712]
[1762509010943,0.4806,3302.8,3302.1,3.02837588]
[1762509010944,0.4321,3302.2,3302.1,3.02837588]
[1762509011141,0.1884,3302.9,3302.1,0.81776865]
[1762509011342,0.669,3302.9,3302.8,3.02773404]
[1762509011773,1.1011,3302.9,3302.6,3.0278281]
[1762509011938,0.4321,3302.7,3301.2,0.6606]
[1762509012141,3.50839903,3302.8,3301.8,3.02857945]
[1762509012376,0.4806,3302.7,3302.1,3.02832143]
[1762509012573,0.4806,3302.7,3302.2,3.028271]
[1762509012774,0.4806,3302.7,3302.1,3.0283066]
[1762509012965,0.4806,3302.7,3301.2,0.6606]
[1762509013164,3.50848175,3302.7,3302.0,3.02840206]
[1762509013367,3.02720084,3302.6,3301.8,3.02861316]
[1762509013543,0.1884,3302.9,3300.4,3.03087242]
[1762509013544,0.6155,3301.9,3300.9,3.21118779]
[1762509013744,0.6155,3301.9,3300.6,0.4788]
[1762509013745,0.0043,3301.4,3301.3,3.02910974]
[1762509014643,0.4576,3301.4,3301.3,3.02910974]
[1762509015057,0.0043,3301.4,3301.3,3.02910974]
[1762509016120,0.4533,3301.7,3301.6,3.0288345]
[1762509016517,0.9125,3301.7,3301.6,3.0288345]
[1762509016921,0.9125,3301.7,3301.5,3.0289169]
[1762509017123,0.1834,3301.9,3301.6,3.0288345]
[1762509017425,0.1512,3301.6,3301.5,3.02892624]
[1762509017597,0.6104,3301.6,3301.5,3.02892624]
[1762509017801,1.0637,3301.6,3301.5,3.02892624]
[1762509017998,1.0637,3301.6,3301.3,3.0290231]
[1762509018203,0.4592,3301.4,3301.3,3.0290231]
[1762509018807,0.9125,3301.4,3300.8,0.001]
[1762509019008,0.6403,3300.9,3300.8,0.001]
[1762509019404,1.0936,3300.9,3300.8,0.001]
[1762509020047,5.3827888,3300.9,3300.8,0.001]
[1762509020722,2.353312,3300.9,3300.8,0.001]
[1762509021855,5.3827888,3300.9,3300.8,0.001]
[1762509022740,2.353312,3300.9,3300.8,0.001]
[1762509023536,1.900012,3300.9,3300.8,0.001]
[1762509023738,1.714412,3300.9,3300.8,0.001]
[1762509024442,0.4547,3300.9,3300.8,0.001]
[1762509024648,1.0936,3300.9,3300.8,0.001]
[1762509025838,0.4547,3300.9,3300.8,3.03056858]
[1762509026140,0.4533,3301.2,3300.9,3.0294393]
[1762509026538,0.4547,3301.0,3300.8,0.001]
[1762509026737,0.1901,3300.9,3300.8,0.001]
[1762509026958,0.0045,3300.9,3300.8,3.03056858]
[1762509027562,3.02875476,3301.7,3301.4,3.02901615]
[1762509027563,0.4533,3301.7,3301.4,3.02901615]
[1762509028079,0.4547,3301.5,3301.4,3.02901615]
[1762509028792,0.1512,3301.5,3301.4,0.4747]
[1762509028956,0.1512,3301.5,3301.4,3.50371799]
[1762509031050,1.0592,3301.5,3300.9,0.1512]
[1762509031379,0.0045,3301.3,3301.2,3.0292015]
[1762509032464,0.1512,3301.5,3301.4,3.02901799]
[1762509032776,0.002,3301.9,3301.7,3.02869071]
[1762509032974,0.1512,3301.7,3301.5,3.02891281]
[1762509033174,0.1512,3301.7,3301.3,3.02910092]
[1762509033483,0.1512,3301.7,3301.6,3.5035345]
[1762509033642,0.1512,3301.7,3301.6,4.15678107]
[1762509033844,0.002,3301.9,3301.8,3.02865103]
[1762509034070,0.002,3301.9,3301.8,3.53363754]
[1762509034258,0.002,3301.9,3301.8,3.99103754]
[1762509034468,0.002,3301.9,3301.8,5.25074954]
[1762509034658,0.002,3301.9,3301.8,12.28948826]
[1762509034890,0.005,3302.9,3302.5,3.02800908]
[1762509035134,0.005,3302.9,3302.5,3.50270908]
[1762509035334,0.005,3302.9,3302.5,5.25010117]
[1762509035628,0.005,3302.9,3302.5,5.21982108]
[1762509035792,0.005,3302.9,3302.5,6.0446138]
[1762509036315,0.0012,3302.6,3302.5,6.0446138]
[1762509041518,0.002,3303.0,3302.9,4.28735437]
[1762509041718,0.002,3303.0,3302.9,5.26495437]
[1762509041920,0.002,3303.0,3302.9,6.09422392]
[1762509043408,0.005,3303.9,3303.8,3.0268176]
[1762509043608,0.005,3303.9,3303.8,3.5206176]
[1762509044829,0.424,3303.9,3303.8,3.0268176]
[1762509045030,1.0938,3303.9,3303.4,3.02713483]
[1762509045210,0.0048,3303.7,3303.6,3.02693024]
[1762509045404,0.1512,3303.8,3303.2,0.1512]
[1762509045405,0.6331,3303.8,3303.7,3.02690922]
[1762509045837,0.5695,3303.8,3303.7,3.02690922]
[1762509046198,0.005,3303.9,3303.8,3.0268176]
[1762509046730,1.0938,3303.9,3303.8,3.0268176]
[1762509047139,0.6125,3303.9,3303.8,3.0268176]
[1762509047306,0.4233,3303.9,3303.8,3.0268176]
[1762509047507,0.005,3303.9,3303.8,3.0268176]
[1762509047718,0.4239,3303.9,3303.8,3.0268176]
[1762509048433,1.095,3303.9,3303.8,3.0268176]
[1762509048730,1.095,3303.9,3303.0,4.28726271]
[1762509048936,1.095,3303.9,3303.8,3.0268176]
[1762509049137,0.4807,3303.8,3303.3,3.0272511]
[1762509049341,0.0048,3303.7,3303.5,3.02702823]
[1762509049526,0.4807,3303.8,3303.4,3.0271662]
[1762509049725,0.4819,3303.7,3303.0,3.02755071]
[1762509049928,0.4819,3303.7,3303.5,3.02701654]
[1762509050239,0.4819,3303.7,3303.0,3.02755071]
[1762509050240,0.4183,3303.1,3303.0,3.02755071]
[1762509051921,0.8996,3303.1,3303.0,3.02755071]
[1762509052442,0.8996,3303.1,3302.6,3.87]
[1762509052629,0.1892,3302.7,3301.9,0.1904]
[1762509052810,0.0054,3302.6,3302.4,3.02804124]
[1762509053126,0.8967,3302.5,3302.2,3.02827908]
[1762509053319,0.8967,3302.5,3302.1,3.02837191]
[1762509053584,0.0042,3302.2,3302.1,3.02837588]
[1762509054024,0.4861,3302.2,3302.1,3.02837588]
[1762509054340,0.1892,3302.7,3302.5,3.02792826]
[1762509054639,0.1892,3302.7,3302.4,3.02804889]
[1762509054640,0.1892,3302.7,3302.6,3.02791739]
[1762509054813,0.1892,3302.9,3302.7,3.02779685]
[1762509055020,0.1892,3302.9,3302.8,3.02773404]
[1762509055349,0.4819,3302.8,3302.6,3.02786006]
[1762509055640,0.4148,3302.7,3302.6,3.02786006]
[1762509056010,0.8961,3302.7,3302.6,3.02786006]
[1762509057030,0.8961,3302.7,3302.1,0.001]
[1762509057340,0.4798,3302.2,3302.1,3.02935705]
[1762509057517,0.4798,3302.2,3302.1,0.001]
[1762509058044,0.8967,3302.2,3302.1,3.02937588]
[1762509058242,0.8967,3302.2,3302.1,0.001]
[1762509058409,0.8967,3302.2,3302.1,3.02937588]
[1762509059004,0.1892,3302.9,3302.7,3.02775628]
[1762509059218,0.8961,3302.8,3302.7,3.02775628]